[Event "WSTCC-50 2024"]
[Site "Krakow"]
[Date "2024.07.06"]
[Round "5.23"]
[White "Jackson, Sheila"]
[Black "Fomina, Tatyana"]
[Result "1/2-1/2"]
[ECO "C10"]
[WhiteElo "1988"]
[BlackElo "2192"]
[Annotator "RC"]
[PlyCount "39"]
[EventDate "2024.07.01"]
[EventType "team-tourn"]
[EventCountry "POL"]
[SourceTitle "playchess.com"]
[Source "ChessBase"]
[SourceQuality "1"]
[TimeControl "40/5400+30:1800+30"]

1. e4 {[%emt 0:00:02]} e6 {[%emt 0:00:08]} 2. d4 {[%emt 0:00:59]} d5 {[%emt 0:00:07]} 3. Nd2 {[%emt 0:00:22]} dxe4 {[%emt 0:00:08]} 4. Nxe4 {[%emt 0:00:03]} Qd5 {[%emt 0:00:06]} 5. Ng3 {[%emt 0:05:54]} Nf6 {[%emt 0:05:44]} 6. Nf3 {[%emt 0:00:23]} c5 {[%emt 0:01:44]} 7. c4 {[%emt 0:05:49]} Qd8 {[%emt 0:01:02]} 8. Be2 {[%emt 0:05:47]} Nc6 {[%emt 0:03:00]} 9. dxc5 {[%emt 0:01:02]} Qxd1+ {[%emt 0:02:53]} 10. Bxd1 {[%emt 0:00:00]} Bxc5 {[%emt 0:00:28]} 11. O-O {[%emt 0:01:21]} Bd7 {[%emt 0:03:00]} 12. a3 {[%emt 0:05:23]} a5 {[%emt 0:02:10]} 13. Bg5 {[%emt 0:07:22]} h6 {[%emt 0:06:23]} 14. Bxf6 {[%emt 0:02:20]} gxf6 {[%emt 0:00:06]} 15. Ne4 {[%emt 0:00:46]} Be7 {[%emt 0:00:37]} 16. Ba4 {[%emt 0:01:01]} f5 {[%emt 0:01:32]} 17. Nc3 {[%emt 0:00:33]} Bf6 {[%emt 0:04:18]} 18. Rac1 {[%emt 0:00:17]} Ne5 {[%emt 0:06:20]} 19. Nxe5 {[%emt 0:04:51]} Bxe5 {[%emt 0:01:41]} 20. Bxd7+ {[%emt 0:00:35]} 1/2-1/2

[Event "WSTCC-50 2024"]
[Site "Krakow"]
[Date "2024.07.06"]
[Round "5.23"]
[White "Kohnen, Marc"]
[Black "Czernicki, Bogdan"]
[Result "0-1"]
[ECO "B32"]
[WhiteElo "1837"]
[BlackElo "1886"]
[Annotator "NA RC"]
[PlyCount "100"]
[EventDate "2024.07.01"]
[EventType "team-tourn"]
[EventCountry "POL"]
[SourceTitle "playchess.com"]
[Source "ChessBase"]
[SourceQuality "1"]
[TimeControl "40/5400+30:1800+30"]

1. e4 {[%emt 0:00:02]} c5 {[%emt 0:00:08]} 2. Nf3 {[%emt 0:00:33]} Nc6 {[%emt 0:00:16]} 3. d4 {[%emt 0:00:58]} cxd4 {[%emt 0:00:11]} 4. Nxd4 {[%emt 0:00:06]} e5 {[%emt 0:00:15]} 5. Nf5 {[%emt 0:03:13]} d6 6. Ng3 {[%emt 0:04:53]} Be6 {[%emt 0:03:56]} 7. Bd3 {[%emt 0:02:23]} h6 {[%emt 0:02:38]} 8. O-O {[%emt 0:01:26]} g5 {[%emt 0:00:26]} 9. Nd2 {[%emt 0:04:48]} Nge7 {[%emt 0:01:39]} 10. Bc4 {[%emt 0:02:08]} Qd7 {[%emt 0:01:06]} 11. Bxe6 {[%emt 0:05:03]} Qxe6 {[%emt 0:00:23]} 12. c3 {[%emt 0:02:15]} Bg7 {[%emt 0:01:21]} 13. Nh5 {[%emt 0:05:25]} O-O {[%emt 0:00:32]} 14. Nxg7 {[%emt 0:00:46]} Kxg7 {[%emt 0:03:18]} 15. Qh5 {[%emt 0:04:11]} Qg6 {[%emt 0:05:43]} 16. Qg4 {[%emt 0:01:50]} f5 {[%emt 0:02:06]} 17. exf5 {[%emt 0:01:43]} Qxf5 {[%emt 0:00:10]} 18. Qe2 {[%emt 0:01:59]} d5 {[%emt 0:00:53]} 19. Nf3 {[%emt 0:04:17]} e4 {[%emt 0:01:45]} 20. Nd4 {[%emt 0:00:11]} Nxd4 {[%emt 0:01:55]} 21. cxd4 {[%emt 0:00:08]} Nc6 {[%emt 0:05:07]} 22. Be3 {[%emt 0:02:18]} Rf7 {[%emt 0:01:43]} 23. Rac1 {[%emt 0:01:42]} a6 {[%emt 0:01:44]} 24. Rc5 {[%emt 0:01:52]} Raf8 {[%emt 0:01:59]} 25. Qc2 {[%emt 0:01:07]} Rd8 {[%emt 0:09:08]} 26. Qb3 {[%emt 0:01:51]} Rdd7 {[%emt 0:01:20]} 27. Qb6 {[%emt 0:03:00]} Rf6 {[%emt 0:03:00]} 28. Qb3 {[%emt 0:02:19]} Qe6 {[%emt 0:03:55]} 29. a4 {[%emt 0:07:56]} Ne7 {[%emt 0:00:59]} 30. Rfc1 {[%emt 0:01:34]} Nc6 {[%emt 0:07:39]} 31. Qd1 {[%emt 0:02:40]} g4 {[%emt 0:00:48]} 32. Qd2 {[%emt 0:04:09]} Rdf7 {[%emt 0:01:31]} 33. b4 {[%emt 0:01:48]} Ne7 {[%emt 0:11:48]} 34. Qe2 {[%emt 0:03:35]} h5 {[%emt 0:02:22]} 35. b5 {[%emt 0:02:17]} Nf5 {[%emt 0:09:16]} 36. Rc7 {[%emt 0:04:26]} Nxe3 {[%emt 0:03:24]} 37. Rxf7+ {[%emt 0:00:17]} Rxf7 {[%emt 0:01:09]} 38. fxe3 {[%emt 0:02:01]} axb5 {[%emt 0:03:43]} 39. axb5 {[%emt 0:02:32]} Qf5 {[%emt 0:00:45]} 40. Rc5 {[%emt 0:04:15]} h4 {[%emt 0:02:53]} 41. b6 {[%emt 0:32:19]} Kg6 {[%emt 0:33:02]} 42. Rc7 {[%emt 0:01:16]} g3 {[%emt 0:02:57]} 43. hxg3 {[%emt 0:02:46]} hxg3 {[%emt 0:00:10]} 44. Rxf7 {[%emt 0:01:09]} Kxf7 {[%emt 0:00:19]} 45. Qe1 {[%emt 0:03:48]} Qg4 {[%emt 0:02:34]} 46. Kf1 {[%emt 0:00:00]} Ke6 {[%emt 0:00:00]} 47. Qc1 {[%emt 0:00:00]} Qf5+ {[%emt 0:00:00]} 48. Kg1 {[%emt 0:00:00]} Qf2+ {[%emt 0:00:00]} 49. Kh1 {[%emt 0:00:00]} Qf8 {[%emt 0:00:00]} 50. Qc7 {[%emt 0:00:00]} Qf1# 0-1

[Event "WSTCC-50 2024"]
[Site "Krakow"]
[Date "2024.07.06"]
[Round "5.24"]
[White "Korge, Kersti"]
[Black "Fink-Nunn, Petra"]
[Result "1/2-1/2"]
[ECO "D05"]
[WhiteElo "1859"]
[BlackElo "1947"]
[Annotator "NA RC"]
[PlyCount "56"]
[EventDate "2024.07.01"]
[EventType "team-tourn"]
[EventCountry "POL"]
[SourceTitle "playchess.com"]
[Source "ChessBase"]
[SourceQuality "1"]
[TimeControl "40/5400+30:1800+30"]

1. d4 {[%emt 0:00:04]} d5 {[%emt 0:00:11]} 2. Nf3 {[%emt 0:00:05]} Nf6 {[%emt 0:00:52]} 3. e3 {[%emt 0:00:13]} e6 {[%emt 0:05:43]} 4. Bd3 {[%emt 0:00:51]} c5 {[%emt 0:01:18]} 5. b3 {[%emt 0:00:38]} Nc6 {[%emt 0:00:38]} 6. Bb2 {[%emt 0:00:46]} cxd4 {[%emt 0:04:14]} 7. Nxd4 {[%emt 0:01:49]} Be7 {[%emt 0:07:58]} 8. O-O {[%emt 0:00:33]} O-O {[%emt 0:00:10]} 9. Nd2 {[%emt 0:00:42]} Qc7 {[%emt 0:16:23]} 10. Nxc6 {[%emt 0:18:14]} bxc6 {[%emt 0:05:52]} 11. f4 {[%emt 0:02:30]} Qb6 {[%emt 0:13:09]} 12. Qf3 {[%emt 0:04:21]} c5 {[%emt 0:03:58]} 13. c4 {[%emt 0:09:53]} Bb7 {[%emt 0:00:26]} 14. Qh3 {[%emt 0:01:29]} d4 {[%emt 0:09:12]} 15. e4 {[%emt 0:02:53]} g6 {[%emt 0:02:12]} 16. Rae1 {[%emt 0:02:00]} h5 {[%emt 0:04:49]} 17. Bc1 {[%emt 0:14:59]} Ng4 {[%emt 0:09:44]} 18. Nf3 {[%emt 0:04:15]} Qd6 {[%emt 0:00:43]} 19. Qg3 {[%emt 0:06:37]} Kg7 {[%emt 0:03:36]} 20. h3 {[%emt 0:01:04]} Nh6 {[%emt 0:02:38]} 21. Ne5 {[%emt 0:00:48]} h4 {[%emt 0:00:35]} 22. Qf2 {[%emt 0:01:59]} f5 {[%emt 0:01:27]} 23. Qe2 {[%emt 0:03:31]} Bf6 {[%emt 0:00:52]} 24. Nxg6 {[%emt 0:09:53]} Kxg6 {[%emt 0:01:21]} 25. e5 {[%emt 0:00:06]} Qc6 {[%emt 0:02:37]} 26. exf6 {[%emt 0:00:11]} Rxf6 {[%emt 0:00:42]} 27. Rf2 {[%emt 0:00:17]} Rg8 {[%emt 0:00:31]} 28. Kh2 {[%emt 0:00:59]} Kh7 {[%emt 0:00:25]} 1/2-1/2

[Event "WSTCC-50 2024"]
[Site "Krakow"]
[Date "2024.07.06"]
[Round "5.24"]
[White "Skorecki, Janusz"]
[Black "Kayser, Pierrot"]
[Result "1-0"]
[ECO "C57"]
[WhiteElo "1729"]
[BlackElo "1764"]
[Annotator "NA RC"]
[PlyCount "101"]
[EventDate "2024.07.01"]
[EventType "team-tourn"]
[EventCountry "POL"]
[SourceTitle "playchess.com"]
[Source "ChessBase"]
[SourceQuality "1"]
[TimeControl "40/5400+30:1800+30"]

1. e4 {[%emt 0:00:02]} e5 {[%emt 0:00:33]} 2. Nf3 {[%emt 0:00:08]} Nc6 {[%emt 0:00:26]} 3. Bc4 {[%emt 0:00:11]} Nf6 {[%emt 0:00:25]} 4. Ng5 {[%emt 0:03:47]} d5 {[%emt 0:00:27]} 5. exd5 {[%emt 0:00:10]} Nxd5 {[%emt 0:00:13]} 6. Nxf7 {[%emt 0:00:19]} Kxf7 {[%emt 0:05:37]} 7. Qf3+ {[%emt 0:00:10]} Qf6 {[%emt 0:01:36]} 8. Bxd5+ {[%emt 0:00:41]} Ke8 {[%emt 0:01:55]} 9. Bxc6+ {[%emt 0:01:04]} Qxc6 {[%emt 0:00:10]} 10. Qxc6+ {[%emt 0:00:13]} bxc6 {[%emt 0:00:10]} 11. O-O {[%emt 0:00:17]} Bd6 {[%emt 0:01:43]} 12. Re1 {[%emt 0:00:30]} Kf7 {[%emt 0:00:15]} 13. Nc3 {[%emt 0:00:17]} Re8 {[%emt 0:00:24]} 14. d3 {[%emt 0:01:08]} Bf5 {[%emt 0:04:50]} 15. Ne4 {[%emt 0:07:07]} Bxe4 {[%emt 0:00:37]} 16. Rxe4 {[%emt 0:01:27]} Re6 {[%emt 0:00:43]} 17. Bd2 {[%emt 0:01:25]} Rae8 {[%emt 0:00:59]} 18. Rae1 {[%emt 0:00:39]} c5 {[%emt 0:00:49]} 19. Ra4 {[%emt 0:06:47]} Ra8 {[%emt 0:00:43]} 20. g3 {[%emt 0:14:17]} h6 {[%emt 0:06:56]} 21. f4 {[%emt 0:07:30]} Kf6 {[%emt 0:03:09]} 22. Bc3 {[%emt 0:00:53]} g5 {[%emt 0:01:25]} 23. fxe5+ {[%emt 0:02:44]} Bxe5 {[%emt 0:00:17]} 24. Rxe5 {[%emt 0:00:29]} Rxe5 {[%emt 0:00:24]} 25. Re4 {[%emt 0:00:26]} Rae8 {[%emt 0:00:09]} 26. Rxe5 {[%emt 0:00:13]} Rxe5 {[%emt 0:00:04]} 27. Kf2 {[%emt 0:00:20]} Ke6 {[%emt 0:00:06]} 28. Bxe5 Kxe5 {[%emt 0:00:14]} 29. h3 {[%emt 0:18:33]} h5 {[%emt 0:00:27]} 30. Ke3 {[%emt 0:01:49]} c6 {[%emt 0:01:25]} 31. c3 {[%emt 0:08:24]} a5 {[%emt 0:01:00]} 32. b3 {[%emt 0:06:59]} Kd5 {[%emt 0:02:01]} 33. a3 {[%emt 0:01:02]} Ke5 {[%emt 0:00:11]} 34. b4 {[%emt 0:06:05]} cxb4 {[%emt 0:01:31]} 35. cxb4 {[%emt 0:00:16]} a4 {[%emt 0:00:13]} 36. d4+ {[%emt 0:01:48]} Kd5 {[%emt 0:00:10]} 37. Kd3 {[%emt 0:00:45]} g4 {[%emt 0:00:54]} 38. hxg4 {[%emt 0:00:26]} hxg4 {[%emt 0:00:12]} 39. Kc3 {[%emt 0:03:12]} Ke4 {[%emt 0:00:55]} 40. Kc4 {[%emt 0:00:05]} Kf3 {[%emt 0:00:23]} 41. Kc5 {[%emt 0:30:13]} Kxg3 {[%emt 0:30:07]} 42. Kxc6 {[%emt 0:00:32]} Kf2 {[%emt 0:00:19]} 43. d5 {[%emt 0:00:42]} g3 {[%emt 0:00:07]} 44. d6 g2 45. d7 {[%emt 0:01:08]} g1=Q {[%emt 0:00:46]} 46. d8=Q {[%emt 0:00:39]} Qc1+ {[%emt 0:00:42]} 47. Kb5 {[%emt 0:00:49]} Qxa3 {[%emt 0:00:53]} 48. Qd2+ Kg3 49. Qg5+ {[%emt 0:03:11]} Kf3 {[%emt 0:01:24]} 50. Qf5+ {[%emt 0:00:16]} Ke3 {[%emt 0:00:22]} 51. Qh3+ 1-0

[Event "WSTCC-50 2024"]
[Site "Krakow"]
[Date "2024.07.07"]
[Round "6.1"]
[White "Mrva, Martin"]
[Black "Krause, Ullrich"]
[Result "1-0"]
[ECO "C02"]
[WhiteElo "2361"]
[BlackElo "2171"]
[Annotator "TA"]
[PlyCount "65"]
[EventDate "2024.07.01"]
[EventType "team-tourn"]
[EventCountry "POL"]
[SourceTitle "playchess.com"]
[Source "ChessBase"]
[SourceQuality "1"]
[TimeControl "40/5400+30:1800+30"]

{[%evp 15,65,4,12,9,31,27,34,32,38,13,4,6,13,1,33,9,18,18,45,54,152,135,147,37,74,85,248,250,254,241,453,454,464,462,642,625,626,606,513,511,468,455,644,646,1357,1317,1350,1277,1225,1199,1187,729]} 1. e4 {[%emt 0:00:05]} e6 {[%emt 0:00:15]} 2. d4 {[%emt 0:00:27]} d5 {[%emt 0:00:06]} 3. e5 {[%emt 0:00:17]} c5 {[%emt 0:00:06]} 4. c3 {[%emt 0:00:06]} Nc6 {[%emt 0:00:03]} 5. Nf3 {[%emt 0:00:08]} Nge7 {[%emt 0:00:26]} 6. Na3 {[%emt 0:01:09]} cxd4 {[%emt 0:03:05]} 7. cxd4 {[%emt 0:11:02]} Nf5 {[%emt 0:00:58]} 8. Nc2 {[%emt 0:00:09]} Qb6 {[%emt 0:06:39]} 9. Bd3 {[%emt 0:20:57]} Nb4 {[%emt 0:03:59]} 10. Nxb4 {[%emt 0:08:44]} Bxb4+ {[%emt 0:00:30]} 11. Kf1 {[%emt 0:04:43] White is slightly better.} Bf8 {[%emt 0:06:23]} 12. g4 {[%emt 0:08:03]} Ne7 {[%emt 0:01:03]} 13. h4 {[%emt 0:00:17][%cal Bh2h4,Bh4h5][%mdl 32]} Bd7 {[%emt 0:01:38]} 14. Kg2 {[%emt 0:05:17]} Nc6 {[%emt 0:05:09]} 15. h5 {[%emt 0:03:58]} h6 {[%emt 0:02:05]} 16. a3 {[%emt 0:02:35]} Be7 {[%emt 0:06:11][%cal Oc6a5]} 17. b4 {[%emt 0:02:06]} O-O-O {[%emt 0:07:03]} (17... Qc7 $14) 18. Bd2 $16 {[%emt 0:05:28]} Kb8 {[%emt 0:02:17][%cal Of7f6] [#]} (18... Nxd4 $2 19. Be3 Kb8 20. Bxd4 $18 (20. Nxd4 Bg5 $18)) 19. Bc3 {[%emt 0:04:57]} (19. Rb1 $1 $16) 19... Rc8 {[%emt 0:05:23]} 20. Qd2 {[%emt 0:00:19] aiming for b5.} Bg5 $2 {[%emt 0:06:47] This costs Black the game.} 21. Nxg5 $18 {[%emt 0:02:47]} hxg5 {[%emt 0:02:16]} 22. a4 {[%emt 0:01:06]} ({Not} 22. Qxg5 Nxd4 23. Bb2 (23. Qxg7 $2 {perishes.} Rhg8 $19) 23... Nb3 $16) 22... Qd8 $2 {[%emt 0:07:36]} (22... f5 23. a5 (23. Qxg5 Nxe5 24. a5 Qc7 $15) 23... Qd8) 23. b5 {[%emt 0:00:24] White is clearly winning.} Ne7 {[%emt 0:00:31][%cal Bc6e7,Be7g8,Bg8h6][%mdl 32]} 24. Bb4 {[%emt 0:00:14][%cal Bc3b4,Bb4d6,Bd6c7,Bc7b6,Bb6a7][%mdl 32]} Ng8 {[%emt 0:01:59]} 25. Bd6+ {[%emt 0:02:39]} Ka8 {[%emt 0:00:06]} 26. Rhc1 {[%emt 0:00:15]} Nh6 {[%emt 0:05:14]} 27. Rxc8+ {[%emt 0:04:09]} Bxc8 {[%emt 0:00:09]} 28. Be2 {[%emt 0:02:39] [#] Hoping for Rc1.} f6 {[%emt 0:03:19]} (28... f5 $142 29. Rc1 fxg4) 29. Rc1 {[%emt 0:00:18] Strongly threatening Rc7.} Bd7 {[%emt 0:04:58]} 30. Bc7 {[%emt 0:00:45]} Qc8 {[%emt 0:04:27]} 31. Qa5 {[%emt 0:00:34] b6 is the strong threat.} b6 {[%emt 0:01:24]} 32. Bxb6 {[%emt 0:00:31]} Qb7 {[%emt 0:00:15]} 33. Bxa7 {[%emt 0:02:49] Weighted Error Value: White=0.09 (flawless) /Black=0.57.  Loses game:     	---       	Black=1      Mistake:       	White=1     	Black=3      Inaccurate:     	---       	Black=5      OK:         	White=10    	Black=5      Best:        	White=2     	Black=1} 1-0

[Event "WSTCC-50 2024"]
[Site "Krakow"]
[Date "2024.07.07"]
[Round "6.1"]
[White "Plotkin, Victor"]
[Black "Olafsson, Helgi"]
[Result "0-1"]
[ECO "C50"]
[WhiteElo "2264"]
[BlackElo "2466"]
[Annotator "TA"]
[PlyCount "106"]
[EventDate "2024.07.01"]
[EventType "team-tourn"]
[EventCountry "POL"]
[SourceTitle "playchess.com"]
[Source "ChessBase"]
[SourceQuality "1"]
[TimeControl "40/5400+30:1800+30"]

{[%evp 18,106,0,0,20,-18,-33,-18,-25,-14,-31,-46,-39,-50,-26,-44,-33,-60,-58,-67,-53,-141,-147,-146,-156,-155,-147,-224,-231,-261,-256,-251,-197,-291,-289,-298,-293,-388,-397,-581,-589,-573,-585,-570,-457,-566,-493,-493,-472,-491,-495,-572,-531,-815,-353,-436,-462,-462,-453,-464,-439,-469,-440,-466,-454,-528,-604,-612,-640,-649,-631,-572,-625,-613,-610,-718,-705,-658,-643,-29964,-29960,-29970,-29969,-6315,-7520,-29973,-29975,-29982,-29983,-29982,-29983]} 1. e4 {[%emt 0:00:03]} e5 {[%emt 0:00:31]} 2. Nf3 {[%emt 0:00:07]} Nc6 {[%emt 0:00:06]} 3. Bc4 {[%emt 0:00:11]} Bc5 {[%emt 0:00:13]} 4. d3 {[%emt 0:00:23]} Nf6 {[%emt 0:00:23]} 5. Nc3 {[%emt 0:00:39]} d6 {[%emt 0:00:35]} 6. h3 {[%emt 0:06:43]} h6 {[%emt 0:01:22]} 7. Na4 {[%emt 0:01:38]} Bb6 {[%emt 0:00:52]} 8. Nxb6 {[%emt 0:00:54]} axb6 {[%emt 0:00:05]} 9. a3 {[%emt 0:03:48]} O-O {[%emt 0:05:22]} 10. O-O {[%emt 0:02:35]} Be6 {[%emt 0:04:10]} 11. Qe2 {[%emt 0:10:18]} Bxc4 {[%emt 0:00:42]} 12. dxc4 {[%emt 0:00:09]} Nd7 {[%emt 0:06:05] The position is equal.} 13. Be3 {[%emt 0:08:22]} Nc5 {[%emt 0:01:04]} 14. Bxc5 {[%emt 0:02:27]} bxc5 {[%emt 0:00:18]} 15. Qd3 {[%emt 0:03:21]} Qd7 {[%emt 0:06:19]} 16. Nh4 {[%emt 0:08:51]} g6 {[%emt 0:00:28]} 17. Rad1 {[%emt 0:01:56]} Kh7 {[%emt 0:00:51]} 18. Kh2 {[%emt 0:05:24]} Qe6 {[%emt 0:04:16]} 19. g4 {[%emt 0:07:32] Black continues to play with concentration.} (19. Ra1 $15) 19... Ra4 $17 {[%emt 0:03:49]} 20. b3 {[%emt 0:16:47]} Rxa3 {[%emt 0:00:38]} 21. Ng2 {[%emt 0:00:27]} Nd4 {[%emt 0:04:17] Black is more active.} 22. Ne3 {[%emt 0:03:28]} (22. f4 $17) 22... c6 $19 {[%emt 0:02:55]} 23. Kg2 {[%emt 0:02:56]} Qf6 {[%emt 0:00:25]} 24. f3 {[%emt 0:01:29]} Qf4 {[%emt 0:03:03]} 25. Qd2 {[%emt 0:01:15]} (25. h4 $142) 25... Ra2 {[%emt 0:00:47]} 26. Rf2 {[%emt 0:01:24]} Rfa8 {[%emt 0:02:30] Hoping for ...Nxb3.} 27. Qe1 {[%emt 0:01:20]} h5 {[%emt 0:03:07]} 28. Rdd2 {[%emt 0:02:25]} (28. Qc3 $142) 28... Ra1 {[%emt 0:01:06]} 29. Nd1 {[%emt 0:01:29]} h4 {[%emt 0:00:38] [#] And now ...Qg3+ would win.} 30. Rf1 {[%emt 0:00:25]} Kg7 {[%emt 0:00:21]} 31. Qf2 {[%emt 0:01:41]} R8a2 {[%emt 0:11:13][%cal Od4b3] Threatens to win with ...Nxb3!} 32. Ne3 {[%emt 0:00:51]} Rxf1 {[%emt 0:00:10]} 33. Nxf1 {[%emt 0:00:20] White is weak on the dark squares} Ra1 {[%emt 0:00:16]} 34. Ne3 {[%emt 0:02:31]} Rc1 {[%emt 0:00:39]} 35. Rd3 {[%emt 0:02:04]} Qf6 {[%emt 0:01:22]} (35... f5 $142 36. Rd1 Rxd1 37. Nxd1 fxe4 38. fxe4 Qxe4+ 39. Kh2 Qxc2 (39... Nxc2 $2 40. Nc3 $19) 40. Qxc2 Nxc2) 36. Rd1 {[%emt 0:00:36]} Rxd1 {[%emt 0:00:14]} 37. Nxd1 {[%emt 0:00:01][%mdl 4096] Endgame. KQN-KQN} Qf4 {[%emt 0:01:06]} 38. Ne3 {[%emt 0:01:24]} Kf8 {[%emt 0:00:32]} 39. Nf1 {[%emt 0:00:35]} Qc1 {[%emt 0:00:16]} 40. Ne3 {[%emt 0:00:29]} Kg7 {[%emt 0:01:26]} 41. Kh2 {[%emt 0:04:46] [#]} Qd2 $3 {[%emt 0:00:44][%mdl 512]} 42. Kg2 {[%emt 0:03:02]} (42. Kg1 Kf8) 42... Qxf2+ {[%emt 0:02:03]} 43. Kxf2 {[%emt 0:00:09] KN-KN} Kf6 {[%emt 0:00:03]} 44. Ng2 {[%emt 0:03:59]} Kg5 {[%emt 0:00:28]} 45. Ne1 {[%emt 0:00:25]} Ne6 {[%emt 0:01:22]} 46. Kg2 {[%emt 0:01:53]} Nf4+ {[%emt 0:00:20]} 47. Kh2 {[%emt 0:00:18]} b6 {[%emt 0:00:27]} 48. Ng2 {[%emt 0:01:21]} Nxg2 {[%emt 0:00:14]} 49. Kxg2 {[%emt 0:00:02]} Kf4 {[%emt 0:00:07]} 50. Kf2 {[%emt 0:00:11]} b5 {[%emt 0:03:13] ( -> ...g5)} 51. cxb5 {[%emt 0:00:30]} cxb5 {[%emt 0:00:02] Black mates.} 52. c4 {[%emt 0:00:50]} bxc4 {[%emt 0:01:05]} 53. bxc4 {[%emt 0:00:06]} g5 {[%emt 0:00:13] Weighted Error Value: White=0.69/Black=0.26 (precise) .  Mistake:       	White=4     	Black=1      Inaccurate:     	White=4     	---        OK:         	White=8     	Black=21     Best:        	White=2     	Black=2} 0-1

[Event "WSTCC-50 2024"]
[Site "Krakow"]
[Date "2024.07.07"]
[Round "6.1"]
[White "Jhunjhnuwala, Krishan"]
[Black "Bouah, Lyndon"]
[Result "1-0"]
[ECO "B03"]
[WhiteElo "2227"]
[BlackElo "1996"]
[Annotator "TA"]
[PlyCount "67"]
[EventDate "2024.07.01"]
[EventType "team-tourn"]
[EventCountry "POL"]
[SourceTitle "playchess.com"]
[Source "ChessBase"]
[SourceQuality "1"]
[TimeControl "40/5400+30:1800+30"]

{[%evp 9,67,27,40,20,50,35,43,29,48,59,77,67,81,78,72,66,69,79,136,58,96,89,98,91,97,93,91,88,98,89,116,117,126,107,139,121,206,219,208,187,162,163,190,164,259,222,259,250,256,210,213,213,299,270,255,233,229,229,454,298]} 1. e4 {[%emt 0:00:05][%cal Be2e4,Be4e5][%mdl 32]} Nf6 {[%emt 0:00:14]} 2. e5 {[%emt 0:00:08]} Nd5 {[%emt 0:00:07]} 3. d4 {[%emt 0:00:06]} d6 {[%emt 0:00:07]} 4. Bc4 {[%emt 0:01:58]} e6 {[%emt 0:03:33]} 5. Nf3 {[%emt 0:01:00]} dxe5 {[%emt 0:03:19]} 6. Nxe5 {[%emt 0:01:39]} Bd6 {[%emt 0:03:17]} 7. O-O {[%emt 0:02:33]} (7. Qg4 {looks sharper.} Nb4 8. O-O O-O 9. Bb3) 7... O-O {[%emt 0:02:13]} 8. Nd2 {[%emt 0:04:08] White is slightly better.} Nd7 {[%emt 0:04:05]} 9. Re1 {[%emt 0:01:35]} N7b6 {[%emt 0:02:20]} 10. Bf1 {[%emt 0:03:49]} c5 {[%emt 0:03:50]} 11. Ne4 {[%emt 0:04:11]} cxd4 {[%emt 0:01:05]} 12. Nxd6 {[%emt 0:02:16]} Qxd6 {[%emt 0:00:07]} 13. Qxd4 {[%emt 0:00:30] Hoping for c4.} Qc7 {[%emt 0:01:53]} (13... f6 $142) 14. Qh4 {[%emt 0:08:38]} ({White should play} 14. c4 $16 Ne7 15. Bf4) 14... Qe7 {[%emt 0:03:48]} 15. Qg3 {[%emt 0:02:32] White is much more active. The black rooks are passive.} (15. Qxe7 {simplifies} Nxe7 16. b3 Rd8 17. Ba3) 15... f6 {[%emt 0:02:09]} 16. Nd3 {[%emt 0:08:59]} Qc7 {[%emt 0:04:21]} 17. Qxc7 {[%emt 0:02:12]} Nxc7 {[%emt 0:00:02] Black is weak on the dark squares} 18. b3 {[%emt 0:04:23]} Re8 {[%emt 0:01:18]} 19. c4 {[%emt 0:00:28]} Bd7 {[%emt 0:00:33]} 20. Be3 {[%emt 0:02:24]} e5 {[%emt 0:02:21]} 21. Rad1 {[%emt 0:02:41]} Rad8 {[%emt 0:00:34] [#]} 22. Nc5 $1 {[%emt 0:03:41][%cal Bd3c5,Bc5e4,Be4d6][%mdl 32]} Bc8 {[%emt 0:04:07]} (22... Bc6 $16 23. b4 Na6) 23. a4 {[%emt 0:01:54]} Nba8 {[%emt 0:01:03]} 24. Ne4 $36 {[%emt 0:01:50][%mdl 2048] Keeping Black busy.} Rxd1 {[%emt 0:01:04]} 25. Rxd1 {[%emt 0:00:13]} b6 {[%emt 0:00:30]} 26. a5 {[%emt 0:05:39]} f5 {[%emt 0:00:38]} (26... Bf5 $142) 27. axb6 {[%emt 0:01:33]} axb6 {[%emt 0:00:17]} 28. Nd6 {[%emt 0:02:04]} Rd8 {[%emt 0:01:21]} 29. f3 {[%emt 0:08:23]} f4 {[%emt 0:05:14]} 30. Bf2 {[%emt 0:01:01]} Ne6 {[%emt 0:01:10]} (30... Be6 $142 31. Be2 Bf7 32. Nxf7 Rxd1+ 33. Bxd1 Kxf7) 31. b4 {[%emt 0:01:03]} Nd4 {[%emt 0:00:35]} 32. c5 {[%emt 0:01:22]} bxc5 {[%emt 0:00:39]} 33. bxc5 {[%emt 0:00:30][%cal Of2h4] [#] aiming for Bh4!} Ne6 $2 {[%emt 0:00:38]} (33... Be6 {was worth a try.} 34. Bxd4 exd4 35. Rxd4 Rf8) 34. Re1 {[%emt 0:02:12] Weighted Error Value: White=0.14 (very precise) /Black=0.29 (precise) .  Mistake:       	White=1     	Black=5      Inaccurate:     	White=1     	Black=3      OK:         	White=12    	Black=8      Best:        	---       	Black=1} 1-0